[Event "V Open LLucmajor"]
[Site "LLucmajor"]
[Date "2016.05.13"]
[Round "6"]
[White "Rijnaarts, Sjef"]
[Black "Kobo, Ori"]
[Result "0-1"]
[ECO "C96"]
[WhiteElo "2373"]
[BlackElo "2491"]
[PlyCount "82"]
[EventDate "2016.??.??"]
[EventCountry "ESP"]
[TimeControl "5400+30"]
[WhiteClock "0:06:45"]
[BlackClock "0:08:31"]

1. e4 {[%emt 0:01:23]} e5 {[%emt 0:00:00]} 2. Nf3 {[%emt 0:00:16]} Nc6 {
[%emt 0:00:00]} 3. Bb5 {[%emt 0:00:07]} a6 {[%emt 0:00:00]} 4. Ba4 {[%emt 0:00:
06]} Nf6 {[%emt 0:00:03]} 5. O-O {[%emt 0:00:09]} Be7 {[%emt 0:00:16]} 6. Re1 {
[%emt 0:00:22]} b5 {[%emt 0:00:11]} 7. Bb3 {[%emt 0:00:10]} d6 {[%emt 0:00:23]}
8. c3 {[%emt 0:00:15]} O-O {[%emt 0:00:08]} 9. h3 {[%emt 0:00:41]} Na5 {
[%emt 0:00:19]} 10. Bc2 {[%emt 0:00:37]} c5 {[%emt 0:00:08]} 11. d4 {[%emt 0:
00:16]} Nd7 {[%emt 0:00:16]} 12. Nbd2 {[%emt 0:02:38]} exd4 {[%emt 0:00:14]}
13. cxd4 {[%emt 0:00:14]} Nc6 {[%emt 0:00:05]} 14. d5 {[%emt 0:08:45]} Nce5 {
[%emt 0:00:09]} 15. a4 {[%emt 0:00:40]} Bb7 {[%emt 0:00:42]} 16. Nxe5 {[%emt 0:
01:39]} Nxe5 {[%emt 0:00:06]} 17. Nf1 {[%emt 0:00:46]} Ng6 {[%emt 0:09:55]} 18.
Ne3 Bf6 {[%emt 0:05:52]} 19. Bd3 {[%emt 0:11:58]} Qb6 {[%emt 0:08:29]} 20. Rb1
{[%emt 0:08:19]} Rae8 {[%emt 0:02:24]} 21. Bd2 {[%emt 0:02:44]} Bc8 {[%emt 0:
03:50]} 22. Bc3 {[%emt 0:03:35]} Bd4 {[%emt 0:05:44]} 23. axb5 {[%emt 0:05:55]}
axb5 {[%emt 0:00:13]} 24. Bxd4 {[%emt 0:01:09]} cxd4 {[%emt 0:00:03]} 25. Nc2 {
[%emt 0:00:12]} f5 {[%emt 0:06:33]} 26. exf5 {[%emt 0:10:53]} Rxe1+ {[%emt 0:
00:51]} 27. Nxe1 {[%emt 0:02:16]} Ne5 {[%emt 0:12:38]} 28. g4 {[%emt 0:01:41]}
g6 {[%emt 0:08:37]} 29. fxg6 {[%emt 0:03:06]} hxg6 {[%emt 0:00:34]} 30. Be4 {
[%emt 0:01:56]} Rf4 {[%emt 0:12:47]} 31. Bg2 {[%emt 0:02:49]} Bb7 {[%emt 0:07:
36]} 32. Nd3 {[%emt 0:01:00]} Rf7 {[%emt 0:00:18]} 33. Qe2 {[%emt 0:02:44]} Qc7
{[%emt 0:06:19]} 34. Rc1 {[%emt 0:01:59]} Qe7 {[%emt 0:00:07]} 35. Nxe5 {
[%emt 0:10:05]} dxe5 {[%emt 0:00:02]} 36. Re1 {[%emt 0:00:43]} Qf6 {[%emt 0:00:
17]} 37. Qxe5 {[%emt 0:04:47]} Qxf2+ {[%emt 0:00:02]} 38. Kh1 {[%emt 0:00:07]}
d3 {[%emt 0:02:51]} 39. Qc3 {[%emt 0:05:50]} d2 {[%emt 0:02:08]} 40. Rd1 {
[%emt 0:00:36]} Re7 {[%emt 0:00:26]} 41. Qxd2 {[%emt 0:00:17]} Re2 {[%emt 0:00:
23]} 0-1

[Event "V Open LLucmajor"]
[Site "LLucmajor"]
[Date "2016.05.13"]
[Round "6"]
[White "Sgircea, Silvia-Raluca"]
[Black "Minzer, Claudio Javier"]
[Result "1/2-1/2"]
[ECO "D14"]
[WhiteElo "2233"]
[BlackElo "2432"]
[PlyCount "20"]
[EventDate "2016.??.??"]
[EventCountry "ESP"]
[TimeControl "5400+30"]
[WhiteClock "1:34:37"]
[BlackClock "1:33:52"]

1. Nf3 {[%emt 0:00:00]} Nf6 {[%emt 0:00:00]} 2. c4 {[%emt 0:00:00]} c6 {
[%emt 0:00:00]} 3. d4 {[%emt 0:00:00]} d5 {[%emt 0:00:00]} 4. cxd5 {[%emt 0:00:
00]} cxd5 {[%emt 0:00:00]} 5. Nc3 {[%emt 0:00:00]} Nc6 {[%emt 0:00:04]} 6. Bf4
{[%emt 0:00:02]} Bf5 {[%emt 0:00:11]} 7. e3 {[%emt 0:00:07]} e6 {[%emt 0:00:09]
} 8. Bd3 {[%emt 0:00:06]} Bxd3 {[%emt 0:00:07]} 9. Qxd3 {[%emt 0:00:04]} Bd6 {
[%emt 0:00:07]} 10. Bxd6 {[%emt 0:00:04]} Qxd6 1/2-1/2

[Event "V Open LLucmajor"]
[Site "LLucmajor"]
[Date "2016.05.13"]
[Round "6"]
[White "Vassallo Barroche, Mauricio"]
[Black "Levin, Felix"]
[Result "1/2-1/2"]
[ECO "D37"]
[WhiteElo "2381"]
[BlackElo "2511"]
[PlyCount "124"]
[EventDate "2016.??.??"]
[EventCountry "ESP"]
[TimeControl "5400+30"]
[WhiteClock "0:22:15"]
[BlackClock "0:06:17"]

1. d4 {[%emt 0:02:16]} Nf6 {[%emt 0:00:00]} 2. c4 {[%emt 0:00:47]} e6 {[%emt 0:
00:00]} 3. Nf3 {[%emt 0:08:39]} d5 {[%emt 0:07:22]} 4. Nc3 {[%emt 0:04:55]}
dxc4 5. e4 Bb4 {[%emt 0:00:44]} 6. Bxc4 {[%emt 0:00:35]} Nxe4 {[%emt 0:00:21]}
7. O-O {[%emt 0:00:05]} Nxc3 {[%emt 0:01:24]} 8. bxc3 {[%emt 0:02:12]} Be7 {
[%emt 0:05:17]} 9. Ne5 {[%emt 0:02:07]} O-O {[%emt 0:05:57]} 10. Qg4 {[%emt 0:
11:51]} Nc6 {[%emt 0:26:18]} 11. Re1 {[%emt 0:05:02]} f5 12. Nxc6 fxg4 {
[%emt 0:00:37]} 13. Nxd8 {[%emt 0:00:38]} Rxd8 {[%emt 0:00:19]} 14. Bxe6+ {
[%emt 0:02:56]} Bxe6 {[%emt 0:00:30]} 15. Rxe6 {[%emt 0:05:38]} Bd6 {[%emt 0:
02:39]} 16. Rb1 {[%emt 0:00:30]} Re8 {[%emt 0:00:30]} 17. Rxe8+ {[%emt 0:00:06]
} Rxe8 {[%emt 0:00:05]} 18. Be3 {[%emt 0:00:10]} b6 {[%emt 0:02:27]} 19. c4 {
[%emt 0:10:00]} Re4 20. g3 c5 {[%emt 0:24:42]} 21. dxc5 {[%emt 0:02:35]} Bxc5 {
[%emt 0:00:18]} 22. Bxc5 {[%emt 0:00:19]} bxc5 {[%emt 0:00:04]} 23. Rb7 {
[%emt 0:00:08]} a5 {[%emt 0:00:14]} 24. Rb5 {[%emt 0:01:38]} Rxc4 {[%emt 0:00:
05]} 25. Rxa5 {[%emt 0:00:09]} Kf7 {[%emt 0:00:04]} 26. Ra6 {[%emt 0:00:09]}
Rc1+ {[%emt 0:07:16]} 27. Kg2 {[%emt 0:00:44]} c4 {[%emt 0:00:12]} 28. h3 {
[%emt 0:09:43]} gxh3+ {[%emt 0:03:35]} 29. Kxh3 {[%emt 0:00:01]} Ke7 {[%emt 0:
00:12]} 30. Kg2 {[%emt 0:00:33]} h5 {[%emt 0:06:31]} 31. Kf3 {[%emt 0:02:32]}
c3 {[%emt 0:00:53]} 32. Ke2 {[%emt 0:05:09]} c2 {[%emt 0:00:40]} 33. Kd2 {
[%emt 0:04:52]} Rf1 {[%emt 0:00:12]} 34. Kxc2 {[%emt 0:00:02]} Rxf2+ {[%emt 0:
00:07]} 35. Kd1 {[%emt 0:00:01]} Rf3 {[%emt 0:01:58]} 36. Rg6 {[%emt 0:00:25]}
Kf7 {[%emt 0:00:06]} 37. Rg5 {[%emt 0:00:06]} g6 {[%emt 0:00:14]} 38. Ke2 {
[%emt 0:00:06]} Ra3 {[%emt 0:00:06]} 39. Kf2 {[%emt 0:00:04]} Kf6 {[%emt 0:00:
11]} 40. Rb5 {[%emt 0:00:07]} Rxa2+ {[%emt 0:00:06]} 41. Kf3 {[%emt 0:00:09]}
Ra3+ {[%emt 0:00:20]} 42. Kg2 {[%emt 0:00:13]} Re3 {[%emt 0:00:13]} 43. Kf2 {
[%emt 0:00:50]} Re5 {[%emt 0:00:07]} 44. Rb4 {[%emt 0:00:04]} g5 {[%emt 0:00:
40]} 45. Ra4 {[%emt 0:01:36]} Rb5 {[%emt 0:00:15]} 46. Kg2 {[%emt 0:01:33]}
Rb2+ {[%emt 0:00:34]} 47. Kf1 {[%emt 0:00:14]} Rb5 {[%emt 0:01:43]} 48. Kf2 {
[%emt 0:00:17]} g4 {[%emt 0:00:09]} 49. Kg2 {[%emt 0:00:56]} Ke5 {[%emt 0:00:
27]} 50. Rf4 {[%emt 0:00:58]} Rb2+ {[%emt 0:00:21]} 51. Kg1 {[%emt 0:00:12]}
Re2 {[%emt 0:00:52]} 52. Ra4 {[%emt 0:01:11]} Rd2 {[%emt 0:00:13]} 53. Rf4 {
[%emt 0:00:53]} Rd4 {[%emt 0:00:14]} 54. Rf8 {[%emt 0:00:19]} Ke4 {[%emt 0:00:
05]} 55. Kg2 {[%emt 0:00:16]} Rd2+ {[%emt 0:02:35]} 56. Kg1 {[%emt 0:00:09]}
Rb2 {[%emt 0:00:18]} 57. Rf7 {[%emt 0:00:08]} Rb5 {[%emt 0:01:10]} 58. Kg2 {
[%emt 0:00:05]} Rf5 {[%emt 0:00:05]} 59. Re7+ {[%emt 0:00:07]} Kd4 {[%emt 0:00:
12]} 60. Rd7+ {[%emt 0:00:09]} Rd5 {[%emt 0:00:15]} 61. Re7 {[%emt 0:00:26]}
Kd3 {[%emt 0:01:09]} 62. Re8 {[%emt 0:00:10]} Kd4 1/2-1/2

[Event "V Open LLucmajor"]
[Site "LLucmajor"]
[Date "2016.05.13"]
[Round "6"]
[White "Winants, Luc"]
[Black "Movsziszian, Karen"]
[Result "1/2-1/2"]
[ECO "A26"]
[WhiteElo "2562"]
[BlackElo "2468"]
[PlyCount "88"]
[EventDate "2016.??.??"]
[EventCountry "ESP"]
[TimeControl "5400+30"]
[WhiteClock "0:50:58"]
[BlackClock "0:41:18"]

1. c4 {[%emt 0:00:15]} d6 {[%emt 0:00:00]} 2. g3 {[%emt 0:02:24]} g6 {[%emt 0:
02:14]} 3. Bg2 {[%emt 0:00:13]} Bg7 {[%emt 0:00:01]} 4. Nc3 {[%emt 0:00:28]} e5
{[%emt 0:00:14]} 5. d3 {[%emt 0:00:18]} Nc6 {[%emt 0:00:53]} 6. Rb1 {[%emt 0:
01:01]} a5 {[%emt 0:00:45]} 7. e3 {[%emt 0:01:10]} Nf6 {[%emt 0:02:02]} 8. Nge2
{[%emt 0:00:42]} O-O {[%emt 0:00:21]} 9. O-O {[%emt 0:00:51]} Bd7 {[%emt 0:02:
44]} 10. b3 {[%emt 0:03:53]} Qc8 {[%emt 0:00:24]} 11. Nd5 {[%emt 0:00:41]} Bh3
{[%emt 0:06:23]} 12. e4 {[%emt 0:07:05]} Bxg2 {[%emt 0:00:26]} 13. Kxg2 {
[%emt 0:00:07]} Nxd5 {[%emt 0:03:48]} 14. cxd5 {[%emt 0:00:18]} Nd4 {[%emt 0:
00:21]} 15. Be3 {[%emt 0:02:53]} Nxe2 {[%emt 0:03:00]} 16. Qxe2 {[%emt 0:00:08]
} f5 {[%emt 0:00:56]} 17. f3 {[%emt 0:00:35]} c6 {[%emt 0:00:49]} 18. Rbc1 {
[%emt 0:08:12]} c5 {[%emt 0:01:06]} 19. Bd2 {[%emt 0:04:02]} Qd7 {[%emt 0:00:
42]} 20. a3 {[%emt 0:02:59]} b6 {[%emt 0:00:21]} 21. g4 {[%emt 0:01:03]} Rf7 {
[%emt 0:13:25]} 22. a4 {[%emt 0:04:26]} Bf6 {[%emt 0:03:31]} 23. Kh1 {[%emt 0:
01:08]} fxg4 {[%emt 0:10:13]} 24. fxg4 {[%emt 0:00:14]} Raf8 {[%emt 0:00:13]}
25. Bh6 {[%emt 0:05:15]} Bg7 {[%emt 0:00:05]} 26. Rxf7 {[%emt 0:00:11]} Rxf7 {
[%emt 0:02:45]} 27. Be3 {[%emt 0:00:52]} Bf8 {[%emt 0:00:22]} 28. Kg2 {[%emt 0:
01:56]} Be7 {[%emt 0:00:16]} 29. Rf1 {[%emt 0:00:47]} Rxf1 {[%emt 0:01:02]} 30.
Kxf1 {[%emt 0:00:16]} Qd8 {[%emt 0:04:35]} 31. Qd2 {[%emt 0:01:56]} Qd7 {
[%emt 0:01:50]} 32. h3 {[%emt 0:00:57]} h5 {[%emt 0:00:44]} 33. Qg2 {[%emt 0:
01:03]} hxg4 {[%emt 0:00:02]} 34. Qxg4 {[%emt 0:00:55]} Qxg4 {[%emt 0:00:01]}
35. hxg4 {[%emt 0:00:12]} g5 {[%emt 0:02:31]} 36. Ke2 {[%emt 0:00:09]} Kf7 {
[%emt 0:00:01]} 37. Kd2 {[%emt 0:00:10]} Ke8 {[%emt 0:00:01]} 38. Kc3 {[%emt 0:
00:10]} Kd7 {[%emt 0:00:03]} 39. Kc4 {[%emt 0:00:08]} Kc7 {[%emt 0:00:01]} 40.
Kb5 {[%emt 0:00:09]} Kb7 {[%emt 0:00:01]} 41. Bd2 {[%emt 0:00:22]} Bd8 {
[%emt 0:00:12]} 42. Bc3 {[%emt 0:00:15]} Bc7 {[%emt 0:00:38]} 43. Be1 {[%emt 0:
00:07]} Bd8 {[%emt 0:00:10]} 44. Bd2 {[%emt 0:00:06]} Be7 {[%emt 0:00:30]}
1/2-1/2

[Event "V Open LLucmajor"]
[Site "LLucmajor"]
[Date "2016.05.12"]
[Round "5"]
[White "Edouard, Romain"]
[Black "Rakhmanov, Aleksandr"]
[Result "1/2-1/2"]
[ECO "D31"]
[WhiteElo "2641"]
[BlackElo "2654"]
[PlyCount "33"]
[EventDate "2016.??.??"]
[EventCountry "ESP"]
[TimeControl "5400+30"]
[WhiteClock "1:15:37"]
[BlackClock "0:57:47"]

1. d4 {[%emt 0:01:34]} d5 {[%emt 0:00:44]} 2. c4 {[%emt 0:00:08]} e6 {[%emt 0:
00:06]} 3. Nc3 {[%emt 0:00:25]} a6 {[%emt 0:02:49]} 4. cxd5 {[%emt 0:00:19]}
exd5 {[%emt 0:00:07]} 5. Bf4 {[%emt 0:00:10]} c6 {[%emt 0:00:23]} 6. e3 {
[%emt 0:00:07]} Bd6 {[%emt 0:00:23]} 7. Bxd6 {[%emt 0:00:13]} Qxd6 {[%emt 0:00:
07]} 8. Bd3 {[%emt 0:00:05]} Ne7 {[%emt 0:01:40]} 9. Qc2 {[%emt 0:00:27]} Bg4 {
[%emt 0:00:56]} 10. h3 {[%emt 0:00:21]} Bh5 {[%emt 0:00:46]} 11. f4 {[%emt 0:
00:06]} f6 {[%emt 0:14:08]} 12. Nf3 {[%emt 0:01:16]} Bg6 {[%emt 0:10:32]} 13.
f5 {[%emt 0:02:45]} Qg3+ {[%emt 0:00:27]} 14. Kf1 {[%emt 0:04:33]} Bh5 {
[%emt 0:05:43]} 15. Ne2 {[%emt 0:00:37]} Qd6 {[%emt 0:00:09]} 16. Kf2 {[%emt 0:
01:14]} Nd7 {[%emt 0:01:13]} 17. Nf4 {[%emt 0:08:33]} 1/2-1/2

[Event "V Open LLucmajor"]
[Site "LLucmajor"]
[Date "2016.05.12"]
[Round "5"]
[White "Fernandez Rodriguez, Sara"]
[Black "Obers, Frits"]
[Result "0-1"]
[ECO "B27"]
[WhiteElo "1785"]
[BlackElo "2143"]
[PlyCount "56"]
[EventDate "2016.??.??"]
[EventCountry "ESP"]
[TimeControl "5400+30"]

1. e4 c5 2. Nf3 g6 3. d4 cxd4 4. Nxd4 Bg7 5. Be3 Nc6 6. Nc3 Nf6 7. f3 O-O 8.
Qd2 d5 9. O-O-O dxe4 10. Nxc6 Qxd2+ 11. Rxd2 bxc6 12. Nxe4 Nd5 13. Bg5 f6 14.
c4 fxg5 15. cxd5 cxd5 16. Rxd5 Be6 17. Ra5 Rfc8+ 18. Kb1 Rab8 19. Rb5 Rxb5 20.
Bxb5 Rb8 21. a4 a6 22. Bxa6 Rxb2+ 23. Kc1 Rxg2 24. a5 Ra2 25. Bd3 Rxa5 26. Re1
Ra1+ 27. Bb1 Ba2 28. Nd2 Bc3 0-1

[Event "V Open LLucmajor"]
[Site "LLucmajor"]
[Date "2016.05.12"]
[Round "5"]
[White "Granda Zuniga, Julio E"]
[Black "Hoffmann, Michael"]
[Result "1-0"]
[ECO "A30"]
[WhiteElo "2686"]
[BlackElo "2473"]
[PlyCount "93"]
[EventDate "2016.??.??"]
[EventCountry "ESP"]
[TimeControl "5400+30"]
[WhiteClock "0:09:35"]
[BlackClock "0:01:13"]

1. c4 {[%emt 0:00:00]} Nf6 {[%emt 0:02:13]} 2. Nc3 {[%emt 0:00:32]} c5 {
[%emt 0:01:30]} 3. g3 {[%emt 0:03:24]} e6 {[%emt 0:01:56]} 4. Nf3 {[%emt 0:00:
52]} b6 {[%emt 0:01:02]} 5. Bg2 {[%emt 0:00:22]} Bb7 {[%emt 0:00:10]} 6. O-O {
[%emt 0:00:06]} Be7 {[%emt 0:05:17]} 7. d4 {[%emt 0:02:52]} cxd4 {[%emt 0:00:
11]} 8. Qxd4 {[%emt 0:00:03]} d6 {[%emt 0:01:26]} 9. Rd1 {[%emt 0:00:35]} a6 {
[%emt 0:01:09]} 10. b3 {[%emt 0:00:48]} Nbd7 {[%emt 0:00:23]} 11. Bb2 {[%emt 0:
01:42]} O-O {[%emt 0:03:30]} 12. e4 {[%emt 0:01:13]} Qc7 {[%emt 0:02:29]} 13.
Qe3 {[%emt 0:01:08]} Rfe8 {[%emt 0:00:25]} 14. h3 {[%emt 0:00:35]} Bf8 15. Rd2
{[%emt 0:03:05]} Rad8 {[%emt 0:03:37]} 16. Rad1 {[%emt 0:00:20]} Qb8 {[%emt 0:
00:52]} 17. Ba3 {[%emt 0:27:21]} Nc5 {[%emt 0:03:26]} 18. Nd4 {[%emt 0:00:46]}
Qa8 {[%emt 0:35:06]} 19. f3 {[%emt 0:02:38]} Qb8 {[%emt 0:05:15]} 20. Re1 {
[%emt 0:19:46]} Ba8 {[%emt 0:03:24]} 21. g4 {[%emt 0:01:38]} g6 {[%emt 0:01:47]
} 22. Nc2 {[%emt 0:05:52]} e5 {[%emt 0:06:05]} 23. Bf1 {[%emt 0:03:20]} Be7 {
[%emt 0:02:33]} 24. Red1 {[%emt 0:00:43]} Rf8 {[%emt 0:04:40]} 25. Nd5 {
[%emt 0:03:06]} Nxd5 {[%emt 0:01:27]} 26. cxd5 {[%emt 0:00:08]} a5 {[%emt 0:03:
58]} 27. Rg2 {[%emt 0:01:26]} Rc8 {[%emt 0:00:32]} 28. Qh6 {[%emt 0:02:14]} Kh8
{[%emt 0:03:17]} 29. Ne3 {[%emt 0:01:13]} b5 {[%emt 0:00:31]} 30. Bb2 {[%emt 0:
00:26]} f6 {[%emt 0:00:46]} 31. Qh4 {[%emt 0:00:54]} Rf7 {[%emt 0:00:19]} 32.
Qe1 {[%emt 0:00:09]} Bd8 {[%emt 0:00:09]} 33. Kh1 {[%emt 0:00:57]} Qb6 {
[%emt 0:00:45]} 34. Qe2 {[%emt 0:01:55]} Rb8 {[%emt 0:01:55]} 35. h4 {[%emt 0:
00:28]} Qa7 {[%emt 0:00:24]} 36. g5 {[%emt 0:01:40]} fxg5 {[%emt 0:00:57]} 37.
hxg5 {[%emt 0:00:02]} Bb6 {[%emt 0:01:50]} 38. Ng4 {[%emt 0:00:23]} Nd7 {
[%emt 0:00:34]} 39. Rh2 {[%emt 0:00:57]} Rbf8 {[%emt 0:00:40]} 40. Bg2 {
[%emt 0:00:48]} b4 {[%emt 0:00:10]} 41. Rh6 {[%emt 0:05:04]} Bb7 {[%emt 0:00:
24]} 42. Kh2 {[%emt 0:00:14]} Ba6 {[%emt 0:00:11]} 43. Qd2 {[%emt 0:00:05]} Qc7
{[%emt 0:03:04]} 44. Kg3 {[%emt 0:00:18]} Kg8 {[%emt 0:00:34]} 45. Rdh1 {
[%emt 0:00:24]} Qa7 {[%emt 0:00:52]} 46. R6h4 {[%emt 0:00:28]} Kh8 {[%emt 0:00:
02]} 47. f4 {[%emt 0:00:55]} 1-0

[Event "V Open LLucmajor"]
[Site "LLucmajor"]
[Date "2016.05.12"]
[Round "5"]
[White "Kobo, Ori"]
[Black "Paunovic, Dragan"]
[Result "1/2-1/2"]
[ECO "B41"]
[WhiteElo "2491"]
[BlackElo "2439"]
[PlyCount "100"]
[EventDate "2016.??.??"]
[EventCountry "ESP"]
[TimeControl "5400+30"]
[WhiteClock "0:15:54"]
[BlackClock "0:08:39"]

1. e4 {[%emt 0:00:00]} c5 {[%emt 0:00:00]} 2. Nf3 {[%emt 0:00:00]} e6 {[%emt 0:
00:00]} 3. d4 {[%emt 0:00:00]} cxd4 {[%emt 0:00:08]} 4. Nxd4 {[%emt 0:00:00]}
a6 {[%emt 0:00:14]} 5. c4 {[%emt 0:00:13]} Nf6 {[%emt 0:00:42]} 6. Nc3 {
[%emt 0:00:07]} Qc7 {[%emt 0:00:27]} 7. Be2 {[%emt 0:00:14]} Be7 {[%emt 0:02:
47]} 8. O-O {[%emt 0:01:27]} d6 {[%emt 0:00:27]} 9. Be3 {[%emt 0:03:35]} b6 {
[%emt 0:00:36]} 10. f3 {[%emt 0:01:37]} Bb7 {[%emt 0:00:17]} 11. Qd2 {[%emt 0:
00:06]} O-O {[%emt 0:01:45]} 12. Rfc1 {[%emt 0:00:14]} Nbd7 {[%emt 0:00:44]}
13. a4 {[%emt 0:00:06]} Rab8 {[%emt 0:04:55]} 14. b4 {[%emt 0:00:46]} Rfc8 {
[%emt 0:00:20]} 15. Nb3 {[%emt 0:03:44]} d5 {[%emt 0:08:53]} 16. exd5 {[%emt 0:
09:11]} Bxb4 {[%emt 0:00:23]} 17. dxe6 {[%emt 0:01:02]} fxe6 {[%emt 0:00:16]}
18. Bf4 {[%emt 0:22:37]} e5 {[%emt 0:00:38]} 19. Bg5 {[%emt 0:00:04]} Nc5 {
[%emt 0:13:17]} 20. Nxc5 {[%emt 0:00:53]} Qxc5+ {[%emt 0:06:23]} 21. Be3 {
[%emt 0:09:32]} Qa5 {[%emt 0:00:55]} 22. Qc2 {[%emt 0:00:29]} Rd8 {[%emt 0:05:
16]} 23. Bg5 {[%emt 0:06:16]} Rd6 {[%emt 0:07:13]} 24. Bxf6 {[%emt 0:03:49]}
Bxc3 {[%emt 0:00:15]} 25. Qxc3 {[%emt 0:00:29]} Qc5+ {[%emt 0:00:29]} 26. Kh1 {
[%emt 0:01:03]} gxf6 {[%emt 0:00:08]} 27. Bd3 {[%emt 0:02:30]} Rbd8 {[%emt 0:
01:50]} 28. Be4 {[%emt 0:02:47]} Bxe4 {[%emt 0:01:53]} 29. fxe4 {[%emt 0:00:02]
} Rd3 {[%emt 0:01:08]} 30. Qe1 {[%emt 0:00:03]} Qe3 {[%emt 0:09:59]} 31. Qf1 {
[%emt 0:00:14]} R8d6 {[%emt 0:04:53]} 32. Re1 {[%emt 0:01:53]} Qf4 {[%emt 0:00:
28]} 33. Qxf4 {[%emt 0:10:42]} exf4 {[%emt 0:00:03]} 34. a5 {[%emt 0:00:46]}
bxa5 {[%emt 0:00:52]} 35. Rxa5 {[%emt 0:00:17]} Re3 {[%emt 0:11:53]} 36. Raa1 {
[%emt 0:00:32]} Rc6 {[%emt 0:01:05]} 37. Kg1 {[%emt 0:04:43]} Rxe1+ {[%emt 0:
01:38]} 38. Rxe1 {[%emt 0:00:01]} Rxc4 {[%emt 0:00:17]} 39. Ra1 {[%emt 0:00:10]
} Rxe4 {[%emt 0:00:30]} 40. Rxa6 {[%emt 0:00:11]} Kg7 {[%emt 0:00:08]} 41. Kf2
{[%emt 0:00:15]} Kg6 {[%emt 0:00:18]} 42. Kf3 {[%emt 0:00:12]} Rb4 {[%emt 0:00:
12]} 43. Rc6 {[%emt 0:01:00]} Kg5 {[%emt 0:04:51]} 44. Rc5+ {[%emt 0:01:02]} f5
{[%emt 0:04:01]} 45. h4+ {[%emt 0:02:01]} Kf6 {[%emt 0:01:57]} 46. Rc6+ {
[%emt 0:00:12]} Ke5 {[%emt 0:00:09]} 47. Rc5+ {[%emt 0:00:45]} Kf6 {[%emt 0:00:
07]} 48. Rc6+ {[%emt 0:00:07]} Ke5 {[%emt 0:00:05]} 49. Rc5+ {[%emt 0:00:37]}
Kf6 {[%emt 0:00:06]} 50. Rc6+ Ke5 {Ke4+} 1/2-1/2

[Event "V Open LLucmajor"]
[Site "LLucmajor"]
[Date "2016.05.12"]
[Round "5"]
[White "Levin, Felix"]
[Black "Stremavicius, Titas"]
[Result "1/2-1/2"]
[ECO "A80"]
[WhiteElo "2511"]
[BlackElo "2443"]
[PlyCount "53"]
[EventDate "2016.??.??"]
[EventCountry "ESP"]
[TimeControl "5400+30"]
[WhiteClock "0:38:41"]
[BlackClock "0:25:37"]

1. d4 f5 2. Nc3 {[%emt 0:00:00]} Nf6 {[%emt 0:13:17]} 3. Bg5 {[%emt 0:00:21]}
d5 {[%emt 0:00:23]} 4. e3 {[%emt 0:00:38]} Be6 {[%emt 0:00:15]} 5. Nf3 {
[%emt 0:00:30]} Nbd7 {[%emt 0:00:27]} 6. Bd3 {[%emt 0:01:22]} Ne4 {[%emt 0:04:
27]} 7. Ne2 {[%emt 0:01:58]} c6 {[%emt 0:01:00]} 8. O-O {[%emt 0:00:29]} g6 {
[%emt 0:00:38]} 9. Bf4 {[%emt 0:03:28]} Bg7 {[%emt 0:07:17]} 10. Rc1 {[%emt 0:
00:33]} O-O {[%emt 0:03:20]} 11. c4 dxc4 {[%emt 0:00:03]} 12. Bxc4 {[%emt 0:04:
27]} Bxc4 {[%emt 0:02:13]} 13. Rxc4 {[%emt 0:00:12]} Nb6 {[%emt 0:02:13]} 14.
Rc1 {[%emt 0:11:08]} Nd5 {[%emt 0:06:28]} 15. Be5 Qa5 16. Bxg7 {[%emt 0:05:36]}
Kxg7 {[%emt 0:00:34]} 17. a3 {[%emt 0:00:48]} Rad8 {[%emt 0:04:08]} 18. Qc2 Nd6
{[%emt 0:05:32]} 19. Rfe1 {[%emt 0:24:29]} Rfe8 20. Nf4 Nxf4 {[%emt 0:05:01]}
21. exf4 {[%emt 0:03:17]} Ne4 {[%emt 0:00:34]} 22. Re3 {[%emt 0:02:07]} Rd5 {
[%emt 0:01:55]} 23. h4 c5 {[%emt 0:07:09]} 24. dxc5 {[%emt 0:02:44]} Rxc5 {
[%emt 0:01:30]} 25. Qb1 Rxc1+ {[%emt 0:08:29]} 26. Qxc1 {[%emt 0:00:12]} h6 27.
Rd3 1/2-1/2

[Event "V Open LLucmajor"]
[Site "LLucmajor"]
[Date "2016.05.12"]
[Round "5"]
[White "Manik, Mikulas"]
[Black "Winants, Luc"]
[Result "1/2-1/2"]
[ECO "C45"]
[WhiteElo "2428"]
[BlackElo "2562"]
[PlyCount "84"]
[EventDate "2016.??.??"]
[EventCountry "ESP"]
[TimeControl "5400+30"]
[WhiteClock "0:00:52"]
[BlackClock "0:29:46"]

1. e4 {[%emt 0:00:00]} e5 {[%emt 0:00:00]} 2. Nf3 {[%emt 0:00:00]} Nc6 {
[%emt 0:00:00]} 3. d4 exd4 {[%emt 0:00:00]} 4. Nxd4 {[%emt 0:00:00]} Bc5 {
[%emt 0:00:25]} 5. Nb3 Bb6 {[%emt 0:00:20]} 6. Nc3 {[%emt 0:00:17]} Nf6 {
[%emt 0:01:17]} 7. Bg5 {[%emt 0:02:26]} h6 {[%emt 0:09:52]} 8. Bh4 {[%emt 0:04:
19]} d6 {[%emt 0:08:52]} 9. Qe2 {[%emt 0:04:51]} Be6 10. O-O-O {[%emt 0:00:06]}
g5 {[%emt 0:06:29]} 11. Bg3 {[%emt 0:13:11]} Qe7 {[%emt 0:03:21]} 12. f3 {
[%emt 0:02:11]} O-O-O {[%emt 0:06:28]} 13. Qe1 {[%emt 0:21:44]} a6 {[%emt 0:00:
44]} 14. Nd5 {[%emt 0:00:30]} Bxd5 {[%emt 0:00:30]} 15. exd5 {[%emt 0:00:06]}
Qxe1 {[%emt 0:04:25]} 16. Bxe1 {[%emt 0:00:11]} Ne5 {[%emt 0:01:55]} 17. c4 {
[%emt 0:14:29]} Rde8 18. Kc2 {[%emt 0:00:30]} Nh5 {[%emt 0:09:16]} 19. Bc3 {
[%emt 0:04:28]} Rhg8 20. Re1 {[%emt 0:09:02]} Bf2 {[%emt 0:04:11]} 21. Re2 {
[%emt 0:01:24]} Ba7 {[%emt 0:00:15]} 22. g3 {[%emt 0:04:37]} Kb8 23. Bxe5 {
[%emt 0:06:41]} dxe5 {[%emt 0:01:12]} 24. Bh3 Ng7 {[%emt 0:00:16]} 25. Rhe1 {
[%emt 0:01:45]} f6 {[%emt 0:00:15]} 26. Nd2 {[%emt 0:03:45]} Rd8 {[%emt 0:01:
47]} 27. b4 {[%emt 0:00:30]} Rgf8 {[%emt 0:02:01]} 28. Ne4 {[%emt 0:02:34]} Bd4
{[%emt 0:03:18]} 29. Nc5 Rf7 30. Ne6 {[%emt 0:01:45]} Nxe6 {[%emt 0:00:37]} 31.
Bxe6 {[%emt 0:00:05]} Re7 {[%emt 0:00:17]} 32. Bf5 {[%emt 0:01:25]} c6 {
[%emt 0:01:12]} 33. dxc6 {[%emt 0:00:52]} bxc6 {[%emt 0:00:07]} 34. Rb1 {
[%emt 0:00:57]} Kc7 {[%emt 0:01:32]} 35. a4 a5 {[%emt 0:01:45]} 36. b5 {
[%emt 0:01:47]} Bc5 37. Rd2 {[%emt 0:00:12]} Rxd2+ {[%emt 0:01:23]} 38. Kxd2 {
[%emt 0:01:07]} Re8 {[%emt 0:00:33]} 39. Ke2 Rd8 {[%emt 0:02:41]} 40. Be4 {
[%emt 0:01:09]} Rd4 {[%emt 0:02:32]} 41. bxc6 {[%emt 0:00:38]} Bb4 {[%emt 0:00:
09]} 42. Rd1 {[%emt 0:00:34]} Rxd1 {[%emt 0:01:17]} 1/2-1/2